fUSD/lending_fUSD_20240923
["ID","MTS","AMOUNT","RATE_DAILY","PERIOD"]
[338967689,1727093454122,-2523.47,0.00012999,2]
[338967690,1727093454133,-2523.47,0.00012999,2]
[338967691,1727093454143,-2523.47,0.00012999,2]
[338967692,1727093454154,-2523.47,0.00012999,2]
[338967693,1727093454165,-2523.47,0.00012999,2]
[338967694,1727093454176,-2523.47,0.00012999,2]
[338967695,1727093454188,-2523.47,0.00012999,2]
[338967696,1727093454199,-2523.47,0.00012999,2]
[338967697,1727093454210,-2523.47,0.00012999,2]
[338967698,1727093454221,-500.0,0.00012999,2]
[338967699,1727093454232,-2523.47,0.00012999,2]
[338967700,1727093454242,-500.0,0.00012999,2]
[338967701,1727093454253,-2523.47,0.00012999,2]
[338967702,1727093454264,-500.0,0.00012999,2]
[338967703,1727093454275,-2523.47,0.00012999,2]
[338967704,1727093454285,-500.0,0.00012999,2]
[338967705,1727093454298,-2523.47,0.00012999,2]
[338967706,1727093454309,-500.0,0.00012999,2]
[338967707,1727093454322,-2523.47,0.00012999,2]
[338967708,1727093454332,-2523.47,0.00012999,2]
[338967709,1727093454343,-500.0,0.00012999,2]
[338967710,1727093454354,-2523.47,0.00012999,2]
[338967711,1727093454366,-500.0,0.00012999,2]
[338967712,1727093454377,-2523.47,0.00012999,2]
[338967713,1727093454387,-500.0,0.00012999,2]
[338967714,1727093454399,-2523.47,0.00012999,2]
[338967715,1727093454410,-481.06530882,0.00012999,2]
[338967716,1727093454421,-2523.47,0.00012999,2]
[338967717,1727093454431,-2523.55,0.00012999,2]
[338967718,1727093454443,-500.0,0.00012999,2]
[338967719,1727093454455,-500.0,0.00012999,2]
[338967720,1727093454466,-500.0,0.00012999,2]
[338967721,1727093454477,-679.13,0.00012999,2]
[338967722,1727093454488,-500.0,0.00012999,2]
[338967723,1727093454499,-679.13,0.00012999,2]
[338967724,1727093454511,-679.13,0.00012999,2]
[338967725,1727093454522,-500.0,0.00012999,2]
[338967726,1727093454533,-679.13,0.00012999,2]
[338967727,1727093454546,-500.0,0.00012999,2]
[338967728,1727093454556,-679.13,0.00012999,2]
[338967729,1727093454567,-500.0,0.00012999,2]
[338967730,1727093454578,-679.13,0.00012999,2]
[338967731,1727093454589,-224.3174737,0.00012999,2]
[338967732,1727093454600,-679.13,0.00012999,2]
[338967733,1727093454611,-679.13,0.00012999,2]
[338967734,1727093454622,-679.13,0.00012999,2]
[338967735,1727093454634,-679.13,0.00012999,2]
[338967736,1727093454644,-679.13,0.00012999,2]
[338967737,1727093454656,-679.13,0.00012999,2]
[338967738,1727093454667,-679.13,0.00012999,2]
[338967739,1727093454678,-679.13,0.00012999,2]
[338967740,1727093454688,-679.13,0.00012999,2]
[338967741,1727093454699,-679.13,0.00012999,2]
[338967742,1727093454710,-679.13,0.00012999,2]
[338967743,1727093454721,-679.13,0.00012999,2]
[338967744,1727093454732,-679.13,0.00012999,2]
[338967745,1727093454742,-679.13,0.00012999,2]
[338967746,1727093454753,-679.13,0.00012999,2]
[338967747,1727093454765,-679.34736117,0.00012999,2]
[338967748,1727093454778,-980.94,0.00012999,2]
[338967749,1727093454791,-980.94,0.00012999,2]
[338967750,1727093454802,-980.94,0.00012999,2]
[338967751,1727093454813,-980.94,0.00012999,2]
[338967752,1727093454824,-504.76,0.00012999,2]
[338967753,1727093454835,-980.94,0.00012999,2]
[338967754,1727093454847,-504.76,0.00012999,2]
[338967755,1727093454858,-980.94,0.00012999,2]
[338967756,1727093454869,-504.76,0.00012999,2]
[338967757,1727093454880,-980.94,0.00012999,2]
[338967758,1727093454891,-504.76,0.00012999,2]
[338967759,1727093454902,-980.94,0.00012999,2]
[338967760,1727093454912,-504.76,0.00012999,2]
[338967761,1727093454923,-980.94,0.00012999,2]
[338967762,1727093454933,-504.76,0.00012999,2]
[338967763,1727093454944,-980.94,0.00012999,2]
[338967764,1727093454955,-504.76,0.00012999,2]
[338967765,1727093454966,-980.94,0.00012999,2]
[338967766,1727093454976,-504.76,0.00012999,2]
[338967767,1727093454987,-980.94,0.00012999,2]
[338967768,1727093454998,-504.76,0.00012999,2]
[338967769,1727093455009,-980.94,0.00012999,2]
[338967770,1727093455020,-504.76,0.00012999,2]
[338967771,1727093455030,-980.94,0.00012999,2]
[338967772,1727093455042,-504.76,0.00012999,2]
[338967773,1727093455052,-980.94,0.00012999,2]
[338967774,1727093455063,-504.76,0.00012999,2]
[338967775,1727093455073,-980.94,0.00012999,2]
[338967776,1727093455084,-504.76,0.00012999,2]
[338967777,1727093455095,-980.94,0.00012999,2]
[338967778,1727093455106,-504.76,0.00012999,2]
[338967779,1727093455116,-151.0,0.00012999,2]
[338967780,1727093455126,-980.94,0.00012999,2]
[338967781,1727093455137,-504.76,0.00012999,2]
[338967782,1727093455147,-980.94,0.00012999,2]
[338967783,1727093455158,-504.76,0.00012999,2]
[338967784,1727093455169,-980.94,0.00012999,2]
[338967785,1727093455179,-504.76,0.00012999,2]
[338967786,1727093455190,-980.94,0.00012999,2]
[338967787,1727093455200,-504.76,0.00012999,2]
[338967788,1727093455211,-504.76,0.00012999,2]
[338967789,1727093455221,-980.99276228,0.00012999,2]
[338967790,1727093455231,-504.76,0.00012999,2]
[338967791,1727093455242,-504.76,0.00012999,2]
[338967792,1727093455252,-504.80908,0.00012999,2]
[338967793,1727093455263,-500.0,0.00012999,2]
[338967794,1727093455274,-500.0,0.00012999,2]
[338967795,1727093455284,-500.0,0.00012999,2]
[338967796,1727093455296,-500.0,0.00012999,2]
[338967797,1727093455306,-2253.06,0.00012999,2]
[338967798,1727093455316,-500.0,0.00012999,2]
[338967799,1727093455331,-2253.06,0.00012999,2]
[338967800,1727093455342,-500.0,0.00012999,2]
[338967801,1727093455352,-2253.06,0.00012999,2]
[338967802,1727093455364,-500.0,0.00012999,2]
[338967803,1727093455374,-2253.06,0.00012999,2]
[338967804,1727093455384,-157.96357864,0.00012999,2]
[338967805,1727093455395,-2253.06,0.00012999,2]
[338967806,1727093455406,-2253.06,0.00012999,2]
[338967807,1727093455417,-2253.06,0.00012999,2]
[338967808,1727093455429,-2253.06,0.00012999,2]
[338967809,1727093455440,-2253.06,0.00012999,2]
[338967810,1727093455451,-2253.06,0.00012999,2]
[338967811,1727093455461,-2253.06,0.00012999,2]
[338967812,1727093455471,-2253.06,0.00012999,2]
[338967813,1727093455482,-2253.06,0.00012999,2]
[338967814,1727093455493,-2253.06,0.00012999,2]
[338967815,1727093455503,-2253.06,0.00012999,2]
[338967816,1727093455513,-2253.06,0.00012999,2]
[338967817,1727093455523,-2253.06,0.00012999,2]
[338967818,1727093455533,-2253.06,0.00012999,2]
[338967819,1727093455547,-2253.06,0.00012999,2]
[338967820,1727093455558,-2253.06,0.00012999,2]
[338967821,1727093455569,-2253.06,0.00012999,2]
[338967822,1727093455580,-2253.26589537,0.00012999,2]
[338967823,1727093455591,-342.707587,0.00012999,2]
[338967824,1727093455602,-539.11,0.00012999,2]
[338967825,1727093455614,-539.11,0.00012999,2]
[338967826,1727093455625,-500.0,0.00012999,2]
[338967827,1727093455635,-539.11,0.00012999,2]
[338967828,1727093455646,-500.0,0.00012999,2]
[338967829,1727093455935,-500.0,0.00012999,2]
[338967830,1727093455953,-539.11,0.00012999,2]
[338967831,1727093455977,-539.11,0.00012999,2]
[338967832,1727093455987,-500.0,0.00012999,2]
[338967833,1727093455997,-500.0,0.00012999,2]
[338967834,1727093456007,-539.11,0.00012999,2]
[338967835,1727093456017,-500.0,0.00012999,2]
[338967836,1727093456027,-539.11,0.00012999,2]
[338967837,1727093456036,-578.43507697,0.00012999,2]
[338967838,1727093456048,-539.11,0.00012999,2]
[338967839,1727093456058,-342.707587,0.00012999,2]
[338967840,1727093456067,-539.11,0.00012999,2]
[338967841,1727093456077,-539.11,0.00012999,2]
[338967842,1727093456088,-539.11,0.00012999,2]
[338967843,1727093456098,-539.11,0.00012999,2]
[338967844,1727093456108,-539.11,0.00012999,2]
[338967845,1727093456118,-539.11,0.00012999,2]
[338967846,1727093456128,-500.0,0.00012999,2]
[338967847,1727093456138,-539.11,0.00012999,2]
[338967848,1727093456148,-500.0,0.00012999,2]
[338967849,1727093456158,-539.11,0.00012999,2]
[338967850,1727093456167,-500.0,0.00012999,2]
[338967851,1727093456177,-539.11,0.00012999,2]
[338967852,1727093456186,-500.0,0.00012999,2]
[338967853,1727093456196,-539.11,0.00012999,2]
[338967854,1727093456205,-500.0,0.00012999,2]
[338967855,1727093456215,-539.11,0.00012999,2]
[338967856,1727093456224,-500.0,0.00012999,2]
[338967857,1727093456234,-539.11,0.00012999,2]
[338967858,1727093456244,-500.0,0.00012999,2]
[338967859,1727093456253,-539.11,0.00012999,2]
[338967860,1727093456262,-500.0,0.00012999,2]
[338967861,1727093456272,-765.55,0.00012999,2]
[338967862,1727093456282,-539.24960379,0.00012999,2]
[338967863,1727093456292,-500.0,0.00012999,2]
[338967864,1727093456301,-765.55,0.00012999,2]
[338967865,1727093456311,-151.0,0.00012999,2]
[338967866,1727093456322,-500.0,0.00012999,2]
[338967867,1727093456333,-765.55,0.00012999,2]
[338967868,1727093456343,-500.0,0.00012999,2]
[338967869,1727093456353,-765.55,0.00012999,2]
[338967870,1727093456363,-765.55,0.00012999,2]
[338967871,1727093456373,-765.55,0.00012999,2]
[338967872,1727093456383,-765.55,0.00012999,2]
[338967873,1727093456393,-765.55,0.00012999,2]
[338967874,1727093456403,-765.55,0.00012999,2]
[338967875,1727093456414,-765.55,0.00012999,2]
[338967876,1727093456424,-765.55,0.00012999,2]
[338967877,1727093456434,-765.55,0.00012999,2]
[338967878,1727093456444,-765.55,0.00012999,2]
[338967879,1727093456454,-215.49905268,0.00012999,2]
[338967880,1727093456464,-752.67,0.00012999,2]
[338967881,1727093456474,-765.55,0.00012999,2]
[338967882,1727093456483,-765.55,0.00012999,2]
[338967883,1727093456493,-752.67,0.00012999,2]
[338967884,1727093456502,-765.55,0.00012999,2]
[338967885,1727093456511,-752.67,0.00012999,2]
[338967886,1727093456521,-765.55,0.00012999,2]
[338967887,1727093456531,-752.67,0.00012999,2]
[338967888,1727093456542,-765.70588902,0.00012999,2]
[338967889,1727093456553,-752.67,0.00012999,2]
[338967890,1727093456562,-752.67,0.00012999,2]
[338967891,1727093456572,-752.67,0.00012999,2]
[338967892,1727093456582,-151.0,0.00012999,2]
[338967893,1727093456592,-752.67,0.00012999,2]
[338967894,1727093456602,-752.67,0.00012999,2]
[338967895,1727093456612,-752.67,0.00012999,2]
[338967896,1727093456623,-752.67,0.00012999,2]
[338967897,1727093456633,-752.67,0.00012999,2]
[338967898,1727093456642,-752.67,0.00012999,2]
[338967899,1727093456652,-752.67,0.00012999,2]
[338967900,1727093456661,-752.67,0.00012999,2]
[338967901,1727093456671,-5224.78,0.00012999,2]
[338967902,1727093456681,-451.2,0.00012999,2]
[338967903,1727093456691,-752.67,0.00012999,2]
[338967904,1727093456700,-5224.78,0.00012999,2]
[338967905,1727093456710,-752.67,0.00012999,2]
[338967906,1727093456720,-5224.78,0.00012999,2]
[338967907,1727093456730,-752.67,0.00012999,2]
[338967908,1727093456740,-5224.78,0.00012999,2]
[338967909,1727093456751,-752.67,0.00012999,2]
[338967910,1727093456761,-5224.78,0.00012999,2]
[338967911,1727093456771,-752.67,0.00012999,2]
[338967912,1727093456781,-5224.78,0.00012999,2]
[338967913,1727093456792,-752.67,0.00012999,2]
[338967914,1727093456802,-5224.78,0.00012999,2]
[338967915,1727093456812,-752.78108388,0.00012999,2]
[338967916,1727093456822,-5224.78,0.00012999,2]
[338967917,1727093456831,-500.0,0.00012999,2]
[338967918,1727093456841,-5224.78,0.00012999,2]
[338967919,1727093456851,-5224.78,0.00012999,2]
[338967920,1727093456861,-500.0,0.00012999,2]
[338967921,1727093456871,-500.0,0.00012999,2]
[338967922,1727093456880,-5224.78,0.00012999,2]
[338967923,1727093456890,-500.0,0.00012999,2]
[338967924,1727093456900,-500.0,0.00012999,2]
[338967925,1727093456909,-5224.78,0.00012999,2]
[338967926,1727093456919,-500.0,0.00012999,2]
[338967927,1727093456928,-5224.78,0.00012999,2]
[338967928,1727093456938,-500.0,0.00012999,2]
[338967929,1727093456948,-500.0,0.00012999,2]
[338967930,1727093456959,-500.0,0.00012999,2]
[338967931,1727093456969,-500.0,0.00012999,2]
[338967932,1727093456981,-5224.78,0.00012999,2]
[338967933,1727093456990,-500.0,0.00012999,2]
[338967934,1727093457000,-500.0,0.00012999,2]
[338967935,1727093457009,-5224.78,0.00012999,2]
[338967936,1727093457019,-500.0,0.00012999,2]
[338967937,1727093457029,-500.0,0.00012999,2]
[338967938,1727093457039,-5224.91321153,0.00012999,2]
[338967939,1727093457050,-500.0,0.00012999,2]
[338967940,1727093457059,-500.0,0.00012999,2]
[338967941,1727093457069,-500.0,0.00012999,2]
[338967942,1727093457080,-500.0,0.00012999,2]
[338967943,1727093457090,-500.0,0.00012999,2]
[338967944,1727093457100,-219.94436567,0.00012999,2]
[338967945,1727093457110,-500.0,0.00012999,2]
[338967946,1727093457120,-534.96442907,0.00012999,2]
[338967947,1727093457130,-500.0,0.00012999,2]
[338967948,1727093457139,-500.0,0.00012999,2]
[338967949,1727093457150,-500.0,0.00012999,2]
[338967950,1727093457160,-500.0,0.00012999,2]
[338967951,1727093457170,-500.0,0.00012999,2]
[338967952,1727093457180,-500.0,0.00012999,2]
[338967953,1727093457190,-500.0,0.00012999,2]
[338967954,1727093457201,-500.0,0.00012999,2]
[338967955,1727093457211,-315.12,0.00012999,2]
[338967956,1727093457220,-500.0,0.00012999,2]
[338967957,1727093457231,-500.0,0.00012999,2]
[338967958,1727093457242,-468.45270347,0.00012999,2]
[338967959,1727093457253,-1050.3,0.00012999,2]
[338967960,1727093457263,-1050.3,0.00012999,2]
[338967961,1727093457272,-1050.3,0.00012999,2]
[338967962,1727093457282,-500.0,0.00012999,2]
[338967963,1727093457291,-2489.77,0.00012999,2]
[338967964,1727093457301,-90234.40475027,0.00013,2]
[338967965,1727093457588,-1553.4252,0.00013,2]
[338967966,1727093457620,-500.0,0.00012998,2]
[338967967,1727093457630,-500.0,0.00012999,2]
[338967968,1727093457640,-1050.3,0.00012999,2]
[338967969,1727093457650,-8729.43921244,0.00013,2]
[338967970,1727093457661,-2207.52666908,0.00013,2]
[338967971,1727093457673,-16547.05381555,0.00013,2]
[338967972,1727093457684,-7596.73680442,0.00013,2]
[338967973,1727093457696,-12702.91227129,0.00013,2]
[338967974,1727093457708,-548.17041609,0.00013,2]
[338967975,1727093457719,-7259.0,0.00013,2]
[338967976,1727093457731,-5464.4664489,0.00013,2]
[338967977,1727093457741,-6960.28040924,0.00013,2]
[338967978,1727093457752,-30577.686,0.00013,2]
[338967979,1727093457763,-456.33706747,0.00013,2]
[338967980,1727093457913,-500.0,0.00012998,2]
[338967981,1727093457922,-500.0,0.00012998,2]
[338967982,1727093457931,-544.76,0.00012998,2]
[338967983,1727093457941,-2489.77,0.00012999,2]
[338967984,1727093457950,-1050.3,0.00012999,2]
[338967985,1727093457959,-500.0,0.00012999,2]
[338967986,1727093457968,-2489.77,0.00012999,2]
[338967987,1727093457977,-268.09800403,0.00012999,2]
[338967988,1727093457990,-782.20199597,0.00012999,2]
[338967989,1727093457999,-500.0,0.00012999,2]
[338967990,1727093458009,-1050.3,0.00012999,2]
[338967991,1727093458018,-1050.3,0.00012999,2]
[338967992,1727093458027,-500.0,0.00012999,2]
[338967993,1727093458036,-2489.77,0.00012999,2]
[338967994,1727093458046,-1050.3,0.00012999,2]
[338967995,1727093458055,-33125.65305066,0.00013,2]
[338967996,1727093458067,-354778.54513999,0.00013,2]
[338967997,1727093458081,-3593.47834983,0.00013,2]
[338967998,1727093458092,-1746.3324078,0.00013,2]
[338967999,1727093458103,-4170.03465609,0.00013,2]
[338968000,1727093458115,-10400.0,0.00013,2]
[338968001,1727093458126,-1009.71667059,0.00013,2]
[338968002,1727093458137,-2946.68335152,0.00013,2]
[338968003,1727093458148,-1399.79399091,0.00013,2]
[338968004,1727093458164,-349.5004148,0.00012999,2]
[338968005,1727093458176,-2140.2695852,0.00012999,2]
[338968006,1727093458185,-8361.43099369,0.00013,2]
[338968007,1727093458196,-317.92,0.00013,2]
[338968008,1727093458212,-398.62975953,0.00012999,2]
[338968009,1727093458227,-651.67024047,0.00012999,2]
[338968010,1727093458237,-3358982.33214286,0.00013,2]
[338968011,1727093458246,-803693.28734448,0.00013,2]
[338968012,1727093458256,-158.701336,0.00013,2]
[338968013,1727093458265,-158.701336,0.00013,2]
[338968014,1727093458274,-519793.43494357,0.00013,2]
[338968015,1727093458286,-1260.0,0.00013,2]
[338968016,1727093458297,-2711.97023703,0.00013,2]
[338968017,1727093458309,-88018.09762873,0.00013,2]
[338968018,1727093458523,-500.0,0.00012993,2]
[338968019,1727093458534,-500.0,0.00012999,2]
[338968020,1727093458545,-912.67514071,0.00012999,2]
[338968021,1727093458557,-1577.09485929,0.00012999,2]
[338968022,1727093458569,-500.0,0.00012999,2]
[338968023,1727093458578,-2489.77,0.00012999,2]
[338968024,1727093458588,-500.0,0.00012999,2]
[338968025,1727093458598,-1050.3,0.00012999,2]
[338968026,1727093458607,-475.86030436,0.00012999,2]
[338968027,1727093458617,-2489.77,0.00012999,2]
[338968028,1727093458626,-331.4931466,0.00012999,2]
[338968029,1727093458646,-209.53463472,0.00012898,2]
[338968030,1727093458655,-718.8068534,0.00012999,2]
[338968031,1727093458664,-2489.77,0.00012999,2]
[338968032,1727093458673,-1050.3,0.00012999,2]
[338968033,1727093458683,-2489.77,0.00012999,2]
[338968034,1727093458692,-1050.3,0.00012999,2]
[338968035,1727093458703,-1050.3,0.00012999,2]
[338968036,1727093458713,-151.0,0.00012999,2]
[338968037,1727093458724,-2489.77,0.00012999,2]
[338968038,1727093458736,-176.78145076,0.00012999,2]
[338968039,1727093458748,-873.69854924,0.00012999,2]
[338968040,1727093458758,-715.32205396,0.00012999,2]
[338968041,1727093458770,-415.19891996,0.00012999,2]
[338968042,1727093458782,-900.0,0.00012999,2]
[338968043,1727093458796,-459.24902608,0.00012999,2]
[338968044,1727093458805,-8360.0420255,0.00013,2]
[338968045,1727093458826,-2489.77,0.00012999,2]
[338968046,1727093458836,-245.13,0.00013,2]
[338968047,1727093458849,-23018.06022655,0.00013,2]
[338968048,1727093459107,-250.0,0.000121,2]
[338968049,1727093459118,-500.0,0.00012992,2]
[338968050,1727093459127,-500.0,0.00012993,2]
[338968051,1727093459137,-500.0,0.00012994,2]
[338968052,1727093459146,-2489.77,0.00012999,2]
[338968053,1727093459155,-1974.438,0.00012999,2]
[338968054,1727093459166,-515.332,0.00012999,2]
[338968055,1727093459175,-2489.83073164,0.00012999,2]
[338968056,1727093459184,-9228.68526836,0.00013,2]
[338968057,1727093459195,-10030.90717097,0.00013,2]
[338968058,1727093459206,-1336.21180422,0.00013,2]
[338968059,1727093459222,-500.0,0.00012997,2]
[338968060,1727093459232,-5634.45000001,0.00013,2]
[338968061,1727093459243,-19076.26493509,0.00013,2]
[338968062,1727093459254,-39623.6796389,0.00013,2]
[338968063,1727093459281,-500.0,0.00012993,2]
[338968064,1727093459290,-500.0,0.00012994,2]
[338968065,1727093459300,-14895.0,0.00013,2]
[338968066,1727093459532,150.0,9.35e-05,2]
[338968067,1727093459554,150.0,9.35e-05,2]
[338968068,1727093459575,200.0,9.35e-05,2]
[338968072,1727093653284,150.0,9.35e-05,2]
[338968073,1727093653306,150.0,9.35e-05,2]
[338968074,1727093653327,150.0,9.35e-05,2]
[338968075,1727093653349,50.0,9.35e-05,2]
[338968077,1727093680655,150.0,9.35e-05,2]
[338968078,1727093680677,150.0,9.35e-05,2]
[338968079,1727093680698,150.0,9.35e-05,2]
[338968080,1727093680728,50.0,9.35e-05,2]
[338968085,1727093720239,150.0,9.35e-05,2]
[338968088,1727093751619,355.93075497,9.35e-05,2]
[338968089,1727093804998,152.3,0.00010018,2]
[338968090,1727094180110,600.0,9.35e-05,2]
[338968091,1727094180921,500.0,9.35e-05,2]
[338968092,1727094181769,600.0,0.0001072,2]
[338968093,1727094249349,150.0,9.35e-05,2]
[338968094,1727094249371,150.0,9.35e-05,2]
[338968095,1727094249396,150.0,9.35e-05,2]
[338968096,1727094249417,130.90686752,9.35e-05,2]
[338968097,1727094284962,500.0,9.35e-05,2]
[338968098,1727094295981,150.0,9.35e-05,2]
[338968099,1727094296002,150.0,9.35e-05,2]
[338968100,1727094296024,200.0,9.35e-05,2]
[338968101,1727094297580,150.0,0.0001072,2]
[338968102,1727094297603,150.0,0.0001072,2]
[338968103,1727094297625,150.0,0.0001072,2]
[338968104,1727094297647,50.0,0.0001072,2]
[338968105,1727094330019,150.0,0.000101,2]
[338968106,1727094330040,150.0,0.000101,2]
[338968107,1727094330061,150.0,0.000101,2]
[338968108,1727094330082,150.0,0.000101,2]
[338968109,1727094330105,150.0,0.000101,2]
[338968110,1727094330126,150.0,0.000101,2]
[338968111,1727094330147,150.0,0.000101,2]
[338968112,1727094330168,150.0,0.000101,2]
[338968113,1727094330191,150.0,0.000101,2]
[338968114,1727094330218,150.0,0.000101,2]
[338968115,1727094330241,284.5944022,0.000101,2]
[338968116,1727094330266,26547.61274523,0.000101,2]
[338968124,1727094387227,500.0,9.35e-05,2]
[338968125,1727094412284,500.0,9.35e-05,2]
[338968126,1727094413876,500.0,0.0001072,2]
[338968130,1727094482025,1050.0,0.00011,2]
[338968169,1727094619416,161.18,9.632e-05,2]
[338968181,1727094631733,-548.6778876,0.00011546,2]
[338968182,1727094631746,-142.9421124,0.00011546,2]
[338968183,1727094631756,-1992.8966876,0.00011586,2]
[338968184,1727094631795,-1313.3133124,0.00011586,2]
[338968185,1727094631806,-250.0,0.00011609,2]
[338968186,1727094631815,-300.0,0.00011619,2]
[338968187,1727094631825,-5968.1719,0.0001162,2]
[338968188,1727094631835,-184.54415172,0.00011688,2]
[338968189,1727094631845,-248.41098926,0.00011688,2]
[338968190,1727094631855,-196.49,0.00011735,2]
[338968191,1727094631866,-275.96,0.00011747,2]
[338968192,1727094631876,-616.28,0.00011771,2]
[338968193,1727094631885,-695.12,0.00011796,2]
[338968194,1727094631895,-250.0,0.0001182,2]
[338968195,1727094631905,-552.5,0.0001182,2]
[338968196,1727094631914,-200.9,0.00011824,2]
[338968197,1727094631923,-392.58,0.00011862,2]
[338968198,1727094631933,-1000.0,0.0001187,2]
[338968199,1727094631943,-161.18,0.00011896,2]
[338968200,1727094631953,-409.06,0.00011978,2]
[338968201,1727094631962,-2515.34054394,0.00012072,2]
[338968202,1727094631971,-2581.74533133,0.00012077,2]
[338968203,1727094631981,-500.0,0.0001209,2]
[338968204,1727094631990,-500.0,0.0001209,2]
[338968205,1727094632000,-200.0,0.000121,4]
[338968206,1727094632010,-150.0,0.00012178,2]
[338968207,1727094632019,-300.0,0.00012178,2]
[338968208,1727094632029,-444.24,0.00012178,2]
[338968209,1727094632039,-150.0,0.00012178,2]
[338968210,1727094632049,-500.0,0.000122,4]
[338968211,1727094632059,-700.0,0.000123,4]
[338968212,1727094632070,-1000.0,0.000124,4]
[338968213,1727094632080,-150.0,0.000124,2]
[338968214,1727094632090,-162.787,0.00012495,2]
[338968215,1727094632100,-1300.0,0.000125,4]
[338968216,1727094632110,-200.0,0.000126,4]
[338968217,1727094632130,-413.84778754,0.00012631,2]
[338968218,1727094632140,-150.0,0.000127,2]
[338968219,1727094632150,-150.0,0.000127,2]
[338968220,1727094632159,-753.56,0.000127,2]
[338968221,1727094632169,-369.2051,0.000127,2]
[338968222,1727094632178,-200.0,0.000127,4]
[338968223,1727094632188,-5867.80288017,0.000127,2]
[338968224,1727094632197,-5867.80288017,0.00012722,2]
[338968225,1727094632207,-150.0,0.00012727,2]
[338968226,1727094632216,-150.0,0.00012731,2]
[338968227,1727094632226,-150.0,0.00012734,2]
[338968228,1727094632236,-5867.80288017,0.00012744,2]
[338968229,1727094632245,-150.0,0.00012756,2]
[338968230,1727094632255,-420.0,0.0001276,2]
[338968231,1727094632264,-150.0,0.00012761,2]
[338968232,1727094632274,-150.0,0.00012764,2]
[338968233,1727094632283,-5867.80288017,0.00012767,2]
[338968234,1727094632292,-1298.72072069,0.0001277,2]
[338968235,1727094632302,-2113.7809,0.0001277,2]
[338968236,1727094632312,-2035.2267,0.0001277,2]
[338968237,1727094632321,-1085.7248,0.0001277,2]
[338968238,1727094632331,-1682.2527,0.0001277,2]
[338968239,1727094632340,-433.2501,0.0001277,2]
[338968240,1727094632350,-150.0,0.00012777,2]
[338968241,1727094632360,-6291.02385786,0.0001278,2]
[338968242,1727094632370,-180.41585507,0.00012781,2]
[338968243,1727094632600,-150.0,0.00012785,2]
[338968244,1727094632610,-150.0,0.00012788,2]
[338968245,1727094632626,-5867.80288017,0.00012789,2]
[338968246,1727094632635,-83131.7565,0.000128,2]
[338968247,1727094632645,-13268.6891,0.000128,2]
[338968248,1727094632654,-4010.1616,0.000128,2]
[338968249,1727094632664,-948.5528,0.000128,2]
[338968250,1727094632673,-291.9527,0.000128,2]
[338968251,1727094632683,-7041.0331,0.000128,2]
[338968252,1727094632692,-150.0,0.000128,2]
[338968253,1727094632701,-200.0,0.000128,4]
[338968254,1727094632711,-318.48800032,0.000128,2]
[338968255,1727094632721,-5867.80288017,0.00012811,2]
[338968256,1727094632730,-150.0,0.00012827,2]
[338968257,1727094632740,-318.48800031,0.00012833,2]